Cogmind - Beta 13 @@@ ROGUE MODE // 2024.04.28 @ 02:09:59 Player: Jules Result: Smashed by cave-in Performance ------------- Evolutions (0) 0 Regions Visited (1) 200 Robots Destroyed (4) 20 Value Destroyed (41) 41 Prototype IDs (0) 0 Alien Tech Used (0) 0 Bonus (0) 0 TOTAL SCORE: 261 Bonus ------- None Cogmind --------- Core Integrity 0/250 Matter 212/300 Energy 10/100 System Corruption 18% Temperature Cool (20) Movement Walking (120) Location -10/Materials Parts ------- > --- POWER (1) -------- (None) > --- PROPULSION (2) --- Improved Aluminum Leg > --- UTILITY (2) ------ Small Storage Unit > --- WEAPON (2) ------- EM Shotgun EM Shotgun > --- INVENTORY (8) ---- Light Ion Engine Improved Aluminum Leg Improved Aluminum Leg EM Shotgun Peak State ------------ > --- POWER ------------ Ion Engine > --- PROPULSION ------- Improved Aluminum Leg Improved Aluminum Leg > --- UTILITY ---------- Small Storage Unit Targeting Computer > --- WEAPON ----------- EM Shotgun EM Shotgun > --- INVENTORY -------- Light Ion Engine Improved Aluminum Leg Improved Aluminum Leg EM Shotgun EM Shotgun Mining Laser [Rating: 12] Favorites ----------- Power Ion Engine Engine Ion Engine Propulsion Improved Aluminum Leg Leg Improved Aluminum Leg Utility Small Storage Unit Storage Small Storage Unit Processor Targeting Computer Weapon EM Shotgun Energy Gun EM Shotgun Special Weapon Mining Laser Build | -11 -10 ------- Run | Yrd Mat Slots Evolved . | . . Power . | . . Propulsion . | . . Utility . | . . Weapon . | . . Parts Attached 16 | 6 10 Power 1 | 1 . Engine 1 | 1 . Core . | . . Reactor . | . . Propulsion 4 | 2 2 Treads . | . . Leg 4 | 2 2 Wheel . | . . Hover . | . . Flight . | . . Utility 2 | 1 1 Device . | . . Storage 1 | 1 . Processor 1 | . 1 Hackware . | . . Protection . | . . Artifact . | . . Weapon 9 | 2 7 Energy Gun 8 | 2 6 Energy Cannon . | . . Ballistic Gun . | . . Ballistic Cannon . | . . Launcher . | . . Special Weapon 1 | . 1 Impact Weapon . | . . Slashing Weapon . | . . Piercing Weapon . | . . Special Melee Weapon . | . . Unidentified Prototypes . | . . Parts Lost 5 | . 5 Power 1 | . 1 Propulsion 1 | . 1 Utility 1 | . 1 Weapon 2 | . 2 Highest Loss Streak 5 | . 5 To Critical Strikes . | . . Average Slot Usage (%) 88 | . 88 Engine 13 | . 13 Leg 28 | . 28 Storage 14 | . 14 Processor 4 | . 4 Energy Gun 26 | . 26 Special Weapon 1 | . 1 Naked Turns . | . . Heaviest Build 16 | 12 16 Greatest Support 26 | 20 26 Greatest Overweight (x) . | . . Average Overweight (x) . | . . Largest Inventory Capacity 8 | 8 8 Average Capacity 7 | 6 8 Most Carried 7 | 2 7 Average Carried 4 | 1 5 Final Capacity 8 | 8 8 Final Carried 4 | 2 4 Class Distribution -------------------- 100% | Mutant Dominant Class ---------------- Mutant | -10/Materials Resources | -11 -10 ----------- Run | Yrd Mat Matter Collected 267 | 229 38 Remotely . | . . Salvage Created 67 | . 67 Parts 4 | . 4 Haulers Intercepted . | . . Recyclers Shooed 2 | . 2 Parts Field Recycled . | . . Retrieved Matter . | . . Parts Self-Destructed . | . . Prevented . | . . Kills | -11 -10 ------- Run | Yrd Mat Combat Hostiles Destroyed 3 | . 3 AOE 3 | . 3 Classes Destroyed 2 | . 2 Worker 1 | . 1 Swarmer 3 | . 3 Best Kill Streak 4 | . 4 Combat Bots Only 3 | . 3 Max Kills in Single Turn 1 | . 1 Gunslinging . | . . Exploded 1 | . 1 Melee . | . . Uniques/NPCs Destroyed . | . . Combat | -11 -10 -------- Run | Yrd Mat Hostile Shots Fired 13 | . 13 Missed 3 | . 3 Damage Taken 813 | . 813 Core 313 | . 313 Absorbed by Shields . | . . Core Remaining (%) 100 | 100 . Volleys Fired 17 | . 17 Largest 2 | . 2 Hottest 100 | . 100 Shots Fired 27 | . 27 Gun 20 | . 20 Cannon . | . . Launcher . | . . Special 7 | . 7 Kinetic . | . . Thermal 7 | . 7 Explosive . | . . Electromagnetic 20 | . 20 Robot Hit Streak 2 | . 2 Robot Miss Streak 9 | . 9 Penetration Max . | . . Secondary Targets . | . . Shots Hit Robots 6 | . 6 Core Hits 7 | . 7 Critical Kills . | . . Critical Parts Destroyed . | . . Critical Strikes . | . . Melee Attacks . | . . Impact . | . . Slashing . | . . Piercing . | . . Sneak Attacks . | . . Combat Hostiles . | . . Follow-up Attacks . | . . Damage Inflicted 371 | . 371 Guns 105 | . 105 Cannons . | . . Explosions 266 | . 266 Melee . | . . Ramming . | . . Kinetic . | . . Thermal 266 | . 266 Explosive . | . . Electromagnetic 105 | . 105 Impact . | . . Slashing . | . . Piercing . | . . Highest Corruption 13 | . 13 Average Corruption 2 | . 2 Corruption Purged . | . . Corruption Blocked . | . . Effects 3 | . 3 Matter Fused 3 | . 3 Overload Shots . | . . Overflow Damage 6 | . 6 Projectiles . | . . Explosions 6 | . 6 Melee . | . . Knockbacks . | . . Impact . | . . Kinetic . | . . Secondary . | . . Self-Inflicted Damage 58 | . 58 Shots 2 | . 2 Rammed . | . . Targets Rammed . | . . Kicked . | . . Crushed . | . . Highest Temperature 198 | . 198 Average Temperature 50 | . 50 Received Heat Transfer . | . . Siege Activations . | . . Robots Corrupted . | . . Combat Hostiles . | . . Parts Fried . | . . Impact Corruptions . | . . Robots Melted . | . . Combat Hostiles . | . . Parts Melted . | . . Heat Transferred 500 | . 500 Parts Sabotaged . | . . Parts Stolen . | . . Parts Stripped . | . . Power Chain Reactions 4 | . 4 Alert | -11 -10 ------- Run | Yrd Mat Peak Influence 177 | . 177 Initial . | . . Average 61 | . 70 Maximum Alert Level . | . . Low Security (%) 100 | 100 100 Level 1 . | . . Level 2 . | . . Level 3 . | . . Level 4 . | . . Level 5 . | . . High Security . | . . Max Security . | . . Squads Dispatched . | . . Investigation . | . . Extermination . | . . Reinforcement . | . . Assault . | . . Garrison . | . . Intercept . | . . Searches Triggered . | . . Construction Impeded . | . . Haulers Reinforced . | . . Active Scanning Responses . | . . Cargo Convoy Interrupts . | . . Stealth | -11 -10 --------- Run | Yrd Mat Distress Signals 1 | . 1 Communications Jammed . | . . Distress Signals . | . . Times Spotted 8 | . 8 Peak Tracking Total 4 | . 4 Tactical Retreats 1 | . 1 Traps | -11 -10 ------- Run | Yrd Mat Traps Triggered 2 | . 2 Indirectly . | . . Trap Hack Attempts . | . . Triggered . | . . Disarmed . | . . Reprogrammed . | . . Reused . | . . Traps Extracted . | . . Installed . | . . Triggered . | . . Machines | -11 -10 ---------- Run | Yrd Mat Machines Disabled 1 | . 1 Max in Single Turn 1 | . 1 Machines Repaired . | . . Machines Dismantled . | . . Machines Sabotaged . | . . Overloaded Fab Kills . | . . Hacking | -11 -10 --------- Run | Yrd Mat Machines Accessed 3 | . 3 Terminals 3 | . 3 Fabricators . | . . Repair Stations . | . . Recycling Units . | . . Scanalyzers . | . . Garrison Access . | . . Total Hacks 4 | . 4 Successful 3 | . 3 Failed 1 | . 1 Catastrophic . | . . Database Lockouts . | . . Manual 3 | . 3 Terminals 4 | . 4 Fabricators . | . . Repair Stations . | . . Recycling Units . | . . Scanalyzers . | . . Garrison Access . | . . Terminal Hacks 2 | . 2 Terminal Index 1 | . 1 Zone Layout 1 | . 1 Fabricator Hacks . | . . Repair Station Hacks . | . . Recycling Unit Hacks . | . . Scanalyzer . | . . Garrison Access Hacks . | . . Unauthorized Hacks 1 | . 1 Terminals 1 | . 1 Assimilate 1 | . 1 Fabricators . | . . Repair Stations . | . . Recycling Units . | . . Scanalyzers . | . . Garrison Access . | . . Data Cores Recovered . | . . Used . | . . Hacking Detections 1 | . 1 Full Trace Events . | . . Feedback Events . | . . Feedback Blocked . | . . Robot Schematics Acquired . | . . Robots Built . | . . Authchips . | . . Time . | . . Total Robot Build Rating . | . . Part Schematics Acquired . | . . Parts Built . | . . Authchips . | . . Time . | . . Total Part Build Rating . | . . Parts Repaired . | . . Time . | . . Parts Recycled . | . . Recycled Matter . | . . Retrieved Matter . | . . Retrieved Components . | . . Parts Scanalyzed . | . . Part Schematics Acquired . | . . Parts Damaged . | . . Bothacking | -11 -10 ------------ Run | Yrd Mat Used RIF Installer . | . . Robots Hacked . | . . Non-combat . | . . Combat . | . . Robot Hacks Applied . | . . Relay Couplers Released . | . . Fabnet Peak Effective % . | . . Robots Rewired . | . . Allies Hacked . | . . Hacks Repelled . | . . Allies | -11 -10 -------- Run | Yrd Mat Total Allies . | . . Largest Group . | . . Highest-Rated Group . | . . Highest-Rated Ally . | . . Total Orders . | . . Ally Attacks . | . . Total Damage . | . . Kills . | . . Allies Corrupted . | . . Allies Melted . | . . Intel | -11 -10 ------- Run | Yrd Mat Robot Analysis Total . | . . Derelict Logs Recovered . | . . Drone Launches . | . . Drone Recoveries . | . . Exploration | -11 -10 ------------- Run | Yrd Mat Turns Passed 572 | 75 497 Spaces Moved 380 | 59 321 Core 9 | 9 . Treads . | . . Legs 371 | 50 321 Wheels . | . . Hover . | . . Flight . | . . Fastest Speed 50 | 50 120 Average Speed 118 | 109 120 Slowest Speed 120 | 120 120 Overloaded Moves . | . . Propulsion Burnouts . | . . Robots Hopped . | . . Cave-ins Triggered 2 | . 2 Exploration Rate (%) 26 | 4 48 Regions Visited 1 Branch Regions . Pre-discovered Areas . | . . Known Exits Taken . | . . Unknown Exits Taken 1 | 1 . Scrap Searched . | . . Spaces Dug 7 | . 7 Terrain Destroyed 17 | . 17 Melee . | . . Projectile 7 | . 7 AOE 10 | . 10 Terrain Rammed . | . . Walls Destroyed . | . . Machines Disabled . | . . Actions | -11 -10 --------- Run | Yrd Mat Total 462 | 66 396 Wait 34 | . 34 Move 379 | 58 321 Hop . | . . Pick Up 7 | 2 5 Fast Attach 10 | 6 4 Attach 4 | . 4 Detach 4 | . 4 Swap 2 | . 2 Drop 5 | . 5 Fire 17 | . 17 Melee . | . . Ram . | . . Kick . | . . Crush . | . . Escape Stasis . | . . Rewire . | . . Trap . | . . Miscellaneous . | . . Route ------- -11/Scrapyard -10/Materials (discovered 1 exit: [*Mat]) History --------- Turn | Location | Event 8 | -11/Scrapyard | Discovered new exit (range 14) 76 | -11/Scrapyard | Entered Materials 311 | -10/Materials | Build established: Mutant 370 | -10/Materials | Discovered new exit (range 12) 563 | -10/Materials | Crushed by falling debris 563 | -10/Materials | Core integrity fell below 50% 563 | -10/Materials | System corruption reached 10% 574 | -10/Materials | Crushed by falling debris 574 | -10/Materials | Smashed by cave-in Last Messages --------------- 00547_ U-05 Engineer builds a Wall. 00553_ Connecting with Terminal... 00555_ System corrupted: Matter fused (-7). 00557_ U-05 Engineer builds a Wall. 00563_ The unstable cave ceiling collapses. 00563_ Crushed by falling debris. 00563_ Mining Laser destroyed. 00563_ System corrupted by crushing effect (+3). 00563_ EM Shotgun destroyed. 00563_ System corrupted by crushing effect (+1). 00563_ Ion Engine destroyed. 00563_ System corrupted by crushing effect (+2). 00563_ Targeting Computer destroyed. 00563_ System corrupted by crushing effect (+5). [Achievement: System Compromised] 00572_ System corrupted: Matter fused (-8). 00574_ The unstable cave ceiling collapses. 00574_ Crushed by falling debris. 00574_ Imp. Aluminum Leg destroyed. 00574_ System corrupted by crushing effect (+5). Map ----- +----------------------------------------------------+ | | | ???????????????????????????????????????######????? | | ??????????????????????????????????# ? ###### | | ??????????????????????????????????# """ # | | ??????????????????????????????????# """"" # | | ??????????????????????????????????# """"" # | | ??????????????????????????????????# """"" # | | ??????????????????????????????????# """ ###### | | ??????????????????????????????????# #???# | | ??????????????????????????????????# #???# | | ??????????????????????????????????#####+######### | | ?????????????????????????????######### | | ?????????????????????????????# """ # ######## | | ?????????????????????????????# """ # #??????? | | ?????????????????????????????# """ + #?????## | | ?????????????????????????????# # #?????# | | ?????????????????????????????# # #?????# | | ??????????????? ?????????????######### ####### | | ??????????????? ???????????????????# [[ | | ?????????????? ###+#?????????????# ^ [ | | ?????????????? ?????????????# | | ??????????????? ????????????# | | ???????????????? ????????????# """ ## | | ?????????????????""" "???########## """^ # | | ?????????????????""" T#### # """ # | | ?????????????????""" "@ # """ # """ # | | ?????????????????""" "####! """ + """ # | | ?????????????????""" "?### """ # # | | ???????????????? r ????# # + | | ??????????????? ????# !!! # # | | ??????????????###### ?????# !!! # ###### # | | ???????????????????#k ?????# !!! # # # # | | ???????????????????# ??????# # # " + ## | | ???????????????????# ??????#+######## # T # #? | | ???????????????????? ???????# #??????# # " !# ## | | ????????????????????????????# ######## # # ## | | ????????????????????????????# ###### ## | | ????????????????????????????###########+####??# #? | | ?????????????????????????????# #??# #? | | ?????????????????????????????# """"" """"" #??# #? | | ?????????????????????????????# """"" """"" #??# #? | | ?????????????????????????????# """"" """"" #??# ## | | ?????????????????????????????# #### ## | | ?????????????????????????????# #### ## | | ?????????????????????????????###########+### # | | ????????????????????????????????????# # | | ????????????????????????????????##### # | | ????????????????????????? =% # | | ????????????????????????????######### ^ "" # | | ????????????????????????????????????# " "" ## | +----------------------------------------------------+ Best States ------------- Heat Dissipation 25 Energy Generation 10 Energy Capacity 250 Matter Stores 269 Matter Capacity 300 Sight Range 16 Terrain Scan Density 10 Evasion (%) 55 Targeting Accuracy 5 Item Schematics ----------------- None Robot Schematics ------------------ None Fabricated ------------ Nothing Alien Tech Used ----------------- None Achievements -------------- System Compromised Challenges ------------ None Game ------ Seed AntigravTachyonBroadsword Manual? 0 Play Time 00:14:08 Cumulative 5.7 hours Start 2024.04.28 @ 02:00:39 End 2024.04.28 @ 02:09:59 Sessions 1 Manual Loads 0 Difficulty Rogue Special Mode None Game No. 13 Rogue 9 Adventurer 4 Explorer 0 Win Type - Total 0 Types 0/0/0/0/0/0/0/0/0 Lore% 13 Gallery% 11 Achievement% 10 Wizard Run 0 Options --------- Layout 2 ASCII 0 Keyboard 0 Movement Numpad Keybinds 0 Fullscreen 2 Font 24/Smallcaps Map View 50x44 Zoom Use 0% Tactical HUD 1 Map Filters NONE Filters NONE Steam 1 RUN: 3f0befce-e7e0-4848-ba98-b558dcc1e25c